bitfinex-derivatives/quotes_ETHF0:USTF0_20240901
["timestamp","ask_amount","ask_price","bid_price","bid_amount"]
[1725155611351,4.51094951,2496.2,2496.1,0.38480336]
[1725155611665,4.50820432,2496.3,2496.1,0.38480336]
[1725155611957,3.52059,2496.4,2496.1,0.38480336]
[1725155612156,3.12,2496.4,2496.1,0.38480336]
[1725155612359,4.56445728,2496.3,2496.1,0.38480336]
[1725155613459,3.96324769,2496.3,2496.1,0.38480336]
[1725155614051,3.37404769,2496.3,2496.2,4.0064]
[1725155614254,3.12,2496.4,2496.2,4.0064]
[1725155616758,3.12,2496.4,2496.2,4.40702]
[1725155617350,3.12,2496.4,2496.2,4.0064]
[1725155618853,3.12,2496.4,2496.2,4.40702]
[1725155620257,7.45015823,2496.3,2496.1,0.38480336]
[1725155620459,3.52062,2496.2,2496.1,0.38480336]
[1725155620862,7.76297823,2496.2,2496.1,0.38480336]
[1725155622259,11.76937823,2496.2,2496.1,0.00600336]
[1725155628164,12.77094823,2496.2,2496.1,0.00600336]
[1725155631370,13.13058859,2496.2,2496.1,0.00600336]
[1725155633567,13.13058859,2496.2,2495.6,1.0481583]
[1725155633568,0.4007,2495.7,2495.6,1.0481583]
[1725155633775,0.4007,2495.7,2495.6,3.05264954]
[1725155633970,4.95090838,2495.7,2495.6,1.0481583]
[1725155634178,4.95090838,2495.7,2495.6,3.05264079]
[1725155634665,5.30470838,2495.7,2495.6,3.05264079]
[1725155635370,4.55020838,2495.7,2495.6,3.05264079]
[1725155635568,4.55020838,2495.7,2495.6,2.00448249]
[1725155635765,4.55020838,2495.7,2495.6,3.57661478]
[1725155636566,4.55020838,2495.7,2495.6,7.58381478]
[1725155636772,3.12,2495.8,2495.6,6.4123487]
[1725155636974,3.12,2495.8,2495.7,3.96571421]
[1725155637362,3.12,2495.8,2495.7,7.97291421]
[1725155638271,3.12,2495.8,2495.7,6.4009287]
[1725155638473,3.12,2495.8,2495.7,7.97317066]
[1725155638975,3.12,2495.8,2495.7,6.4009287]
[1725155639471,3.12,2496.0,2495.7,6.4009287]
[1725155639671,3.12,2496.0,2495.9,1.57247608]
[1725155639975,3.12,2496.0,2495.9,3.57690478]
[1725155640175,3.12,2496.0,2495.9,6.7685287]
[1725155640471,3.12,2496.0,2495.9,8.34113729]
[1725155640866,3.12,2496.0,2495.9,8.34097352]
[1725155641070,3.52066,2496.0,2495.9,8.34097352]
[1725155641877,3.12,2496.0,2495.9,8.34097352]
[1725155642569,7.31465018,2496.0,2495.9,4.33457352]
[1725155642773,7.31465018,2496.0,2495.9,2.76196493]
[1725155642978,7.31465018,2496.0,2495.9,6.76836493]
[1725155643178,7.31465018,2496.0,2495.9,8.85117085]
[1725155643875,7.31465018,2496.0,2495.9,9.25184085]
[1725155644083,3.12,2496.4,2496.1,0.40063]
[1725155644378,4.88485387,2496.3,2496.2,1.04927647]
[1725155644579,9.10515387,2496.3,2496.2,1.04927647]
[1725155644874,4.62091,2496.3,2496.2,1.04927647]
[1725155645078,9.24555,2496.3,2496.2,1.04927647]
[1725155645979,0.40062,2496.2,2496.1,1.04927647]
[1725155646281,8.30838473,2496.2,2496.1,1.04927647]
[1725155646667,8.14712554,2496.2,2496.1,1.04927647]
[1725155647275,12.15352554,2496.2,2496.1,1.04927647]
[1725155647774,12.31477885,2496.2,2496.1,1.04927647]
[1725155648173,12.31478001,2496.2,2496.1,1.04927647]
[1725155648369,13.61478001,2496.2,2496.1,1.04927647]
[1725155648574,13.6147788,2496.2,2496.1,1.04927647]
[1725155648984,9.44712554,2496.2,2496.1,1.04927647]
[1725155649577,9.04650554,2496.2,2496.1,1.04927647]
[1725155649883,9.04650554,2496.2,2496.1,2.00420795]
[1725155650184,9.04650554,2496.2,2496.1,3.05376419]
[1725155650382,9.04650554,2496.2,2496.1,3.57812228]
[1725155651883,5.83870554,2496.2,2496.1,3.57812228]
[1725155652781,5.83870554,2496.2,2496.1,3.05383821]
[1725155652971,5.83870554,2496.2,2496.1,2.00420758]
[1725155653172,5.83870554,2496.2,2496.1,3.57812228]
[1725155653372,5.83870554,2496.2,2496.1,3.05382812]
[1725155653582,5.83870554,2496.2,2496.1,3.57812228]
[1725155653983,5.83870554,2496.2,2496.1,3.05384031]
[1725155654678,5.83870554,2496.2,2496.1,3.57812228]
[1725155654880,5.83870554,2496.2,2496.1,12.11730977]
[1725155655480,5.83870554,2496.2,2496.1,12.51794977]
[1725155655772,3.21380336,2496.6,2496.2,0.40062]
[1725155655979,3.21380336,2496.6,2496.5,1.04945534]
[1725155656386,7.42937295,2496.6,2496.5,1.04945534]
[1725155657686,4.22157295,2496.6,2496.5,1.04945534]
[1725155657983,7.42937295,2496.6,2496.5,1.04945534]
[1725155658783,8.72937295,2496.6,2496.5,1.04945534]
[1725155659773,5.52157295,2496.6,2496.5,1.04945534]
[1725155659977,8.72937295,2496.6,2496.5,1.04945534]
[1725155660491,7.42937295,2496.6,2496.5,1.04945534]
[1725155660784,8.72937295,2496.6,2496.5,1.04945534]
[1725155660985,8.72937295,2496.6,2496.5,3.05342327]
[1725155664289,8.72937295,2496.6,2496.5,3.05326496]
[1725155665185,8.72937295,2496.6,2496.4,1.96028301]
[1725155665486,8.72937295,2496.6,2496.5,3.5780722]
[1725155665683,8.72937295,2496.6,2496.5,2.00388919]
[1725155666685,8.72937295,2496.6,2496.5,3.57765581]
[1725155667283,8.72937295,2496.6,2496.5,2.00388919]
[1725155668187,8.72937295,2496.6,2496.5,3.57736727]
[1725155669084,5.52157295,2496.6,2496.5,3.57736727]
[1725155669286,8.72937295,2496.6,2496.5,3.57736727]
[1725155670083,9.12993295,2496.6,2496.5,3.57736727]
[1725155670280,9.54573295,2496.6,2496.5,1.04877355]
[1725155670686,8.72937295,2496.6,2496.5,1.04877355]
[1725155670891,8.72937295,2496.6,2496.5,3.46972821]
[1725155671889,7.42937295,2496.6,2496.5,7.47532821]
[1725155672093,7.42937295,2496.6,2496.5,6.82713466]
[1725155672094,8.72937295,2496.6,2496.5,6.82713466]
[1725155672492,8.72937295,2496.6,2496.5,12.93349739]
[1725155673290,8.12826189,2496.6,2496.5,12.93349739]
[1725155673896,8.12826189,2496.6,2496.5,8.92604534]
[1725155674898,8.12826189,2496.6,2496.5,5.05386916]
[1725155675098,8.12826189,2496.6,2496.5,6.00952369]
[1725155675300,8.52883189,2496.6,2496.5,3.05206991]
[1725155675489,8.92593189,2496.6,2496.5,3.05206991]
[1725155676099,8.52536189,2496.6,2496.5,3.05206991]
[1725155676295,8.52536189,2496.6,2496.5,3.57616965]
[1725155678202,5.31756189,2496.6,2496.5,3.57616965]
[1725155678894,5.71812189,2496.6,2496.5,3.57616965]
[1725155679094,5.71812189,2496.6,2496.5,2.00383953]
[1725155679295,5.71812189,2496.6,2496.5,1.04840089]
[1725155680799,0.40058,2496.5,2496.4,1.04840089]
[1725155681202,0.40059,2496.4,2496.3,1.04840089]
[1725155681402,4.90839,2496.4,2496.3,3.0524894]
[1725155681596,9.17065595,2496.4,2496.3,3.0524894]
[1725155684004,9.17065595,2496.4,2496.3,2.00408851]
[1725155684201,9.17065595,2496.4,2496.3,3.57641863]
[1725155684909,5.96285595,2496.4,2496.3,3.57641863]
[1725155685208,9.17065595,2496.4,2496.3,3.57641863]
[1725155685409,9.17065595,2496.4,2496.3,3.57642449]
[1725155686299,4.26226595,2496.4,2496.3,3.57642449]
[1725155686501,5.56226595,2496.4,2496.3,3.57642449]
[1725155686803,1.3,2496.4,2496.3,3.57642449]
[1725155687010,5.93458075,2496.4,2496.3,3.57642449]
[1725155690312,5.93458075,2496.4,2496.3,4.92140505]
[1725155690498,5.93458075,2496.4,2496.3,8.92923514]
[1725155690699,4.63458075,2496.4,2496.3,12.93484413]
[1725155690905,1.3,2496.5,2496.3,19.85749709]
[1725155691210,1.3,2496.5,2496.4,10.01753345]
[1725155691408,1.3,2496.5,2496.4,12.63848709]
[1725155691806,3.2078,2496.6,2496.5,0.40058]
[1725155692007,3.2078,2496.6,2496.5,6.01193345]
[1725155692201,3.2078,2496.6,2496.5,10.81451345]
[1725155693607,1.3,2496.7,2496.5,10.81451345]
[1725155693912,1.3,2496.7,2496.6,4.1026454]
[1725155693913,4.5078,2496.7,2496.6,4.1026454]
[1725155694302,9.07980532,2496.7,2496.6,8.10993957]
[1725155695204,5.87200532,2496.7,2496.6,8.10995126]
[1725155696204,5.87200532,2496.7,2496.6,4.1026454]
[1725155696408,5.87200532,2496.7,2496.6,10.01703391]
[1725155699214,5.87200532,2496.7,2496.6,12.63798755]
[1725155700505,5.87200532,2496.7,2496.6,13.03789418]
[1725155700705,5.87200532,2496.7,2496.6,10.41694054]
[1725155701308,1.3,2496.7,2496.6,10.41694054]
[1725155702212,1.3,2496.7,2496.6,13.04093647]
[1725155702411,1.3,2496.7,2496.6,12.64037647]
[1725155702712,11.05393291,2496.7,2496.6,4.10308808]
[1725155702915,11.48833291,2496.7,2496.6,2.00359351]
[1725155703219,7.48273291,2496.7,2496.6,3.57821975]
[1725155703514,6.48136291,2496.7,2496.6,3.57821975]
[1725155703717,10.48696291,2496.7,2496.6,3.0534425]
[1725155703907,10.48696291,2496.7,2496.6,1.04984899]
[1725155704311,16.8428027,2496.7,2496.6,1.04984899]
[1725155704616,17.00402717,2496.7,2496.6,1.04984899]
[1725155706009,17.00402717,2496.7,2496.5,1.04984899]
[1725155706010,0.40056,2496.6,2496.5,1.04984899]
[1725155706215,2.29448447,2496.6,2496.5,3.05391953]
[1725155706414,10.66975004,2496.6,2496.5,3.05391953]
[1725155706608,13.87755004,2496.6,2496.5,3.05391953]
[1725155707216,13.71632557,2496.6,2496.5,3.05391953]
[1725155707526,13.87754402,2496.6,2496.5,3.05391953]
[1725155708420,4.53088402,2496.6,2496.5,3.57869678]
[1725155708612,4.53088402,2496.6,2496.5,8.11113807]
[1725155708613,4.36966557,2496.6,2496.5,8.11113807]
[1725155709013,5.58884754,2496.7,2496.5,8.110895]
[1725155709231,1.3,2496.7,2496.6,3.57842205]
[1725155709722,5.89577986,2496.7,2496.6,2.00380014]
[1725155709921,5.89577986,2496.7,2496.6,3.57843176]
[1725155709922,6.29631986,2496.7,2496.6,3.57843176]
[1725155710121,9.91561986,2496.7,2496.6,3.57843176]
[1725155710423,9.91561986,2496.7,2496.6,3.57851638]
[1725155710627,13.92121986,2496.7,2496.6,3.57851638]
[1725155710824,14.08243581,2496.7,2496.6,2.00388476]
[1725155711221,14.08243581,2496.7,2496.6,3.05379742]
[1725155711528,14.08243581,2496.7,2496.6,1.0498382]
[1725155711919,14.08243581,2496.7,2496.6,3.05378648]
[1725155712119,14.44368863,2496.7,2496.6,3.05378648]
[1725155712422,14.44368863,2496.7,2496.6,1.0498382]
[1725155712725,20.44368863,2496.7,2496.6,1.0498382]
[1725155713829,12.78243581,2496.7,2496.6,1.0498382]
[1725155714024,14.08242302,2496.7,2496.6,3.05371458]
[1725155714219,14.08242302,2496.7,2496.6,3.48431458]
[1725155715820,14.08242302,2496.7,2496.6,3.48423175]
[1725155716015,14.08242302,2496.7,2496.6,3.48423274]
[1725155716232,14.08242302,2496.7,2496.6,3.05368266]
[1725155716420,14.08242302,2496.7,2496.6,1.04980628]
[1725155716737,14.08242302,2496.7,2496.6,3.05377309]
[1725155716924,0.40056,2496.6,2496.5,2.6244379]
[1725155717127,5.00176316,2496.6,2496.5,3.05381552]
[1725155717332,9.42689054,2496.6,2496.5,1.04980628]
[1725155718525,9.42689054,2496.6,2496.5,3.05376884]
[1725155718924,9.42689054,2496.6,2496.5,1.04980628]
[1725155720236,9.42689054,2496.6,2496.5,3.053787]
[1725155720639,9.42689091,2496.6,2496.5,3.053787]
[1725155720932,9.42689091,2496.6,2496.5,1.04980628]
[1725155721538,9.78521626,2496.6,2496.5,1.04980628]
[1725155721837,12.99301626,2496.6,2496.5,1.04980628]
[1725155722230,18.99301626,2496.6,2496.5,1.04980628]
[1725155722447,0.40061,2496.3,2496.2,1.57463162]
[1725155722639,0.40061,2496.3,2496.0,2.09949457]
[1725155722640,0.40062,2496.2,2496.1,1.04996164]
[1725155722940,1.70064,2496.1,2496.0,1.04996164]
[1725155723138,0.40066,2496.0,2495.9,1.04996164]
[1725155723440,0.40066,2496.0,2495.9,3.0544017]
[1725155723441,7.78199895,2496.0,2495.9,3.0544017]
[1725155724038,7.38133895,2496.0,2495.9,3.05439132]
[1725155724339,4.17353895,2496.0,2495.9,2.40872968]
[1725155724635,4.17353895,2496.0,2495.9,3.9829237]
[1725155726544,4.57419895,2496.0,2495.9,3.5786237]
[1725155726733,4.57419895,2496.0,2495.9,3.57853342]
[1725155726734,7.78199895,2496.0,2495.9,3.57853342]
[1725155726937,8.57909895,2496.0,2495.9,1.04922686]
[1725155727241,18.58549895,2496.0,2495.7,1.04922686]
[1725155727433,6.46933409,2495.9,2495.6,1.04922686]
[1725155727639,4.5078,2495.7,2495.6,1.04922686]
[1725155728040,13.19817396,2495.7,2495.6,1.04922686]
[1725155728344,0.40072,2495.6,2495.5,1.04922686]
[1725155728634,4.64622048,2495.6,2495.5,1.04922686]
[1725155729135,4.24550048,2495.6,2495.4,1.05523022]
[1725155729340,0.40074,2495.5,2495.4,1.05523022]
[1725155729641,4.16909522,2495.5,2495.4,1.05523022]
[1725155730639,4.16909522,2495.5,2495.4,3.05990748]
[1725155730833,4.16909522,2495.5,2495.4,4.01867464]
[1725155731037,4.56034549,2495.6,2495.4,4.01867464]
[1725155731237,3.12,2495.7,2495.5,3.05239956]
[1725155731427,3.12,2495.7,2495.6,0.4401]
[1725155731833,11.62449014,2495.7,2495.6,0.4401]
[1725155732127,7.61729014,2495.7,2495.6,0.4401]
[1725155737437,4.49729014,2495.7,2495.6,0.4401]
[1725155737843,3.12,2495.8,2495.6,0.4401]
[1725155737844,8.08253189,2495.8,2495.6,0.4401]
[1725155738139,3.52069,2495.8,2495.6,0.4401]
[1725155738343,3.52069,2495.8,2495.7,0.4039]
[1725155738543,3.12,2495.8,2495.7,0.4039]
[1725155738845,7.3295578,2495.8,2495.7,0.4039]
[1725155740744,4.2095578,2495.8,2495.7,0.4039]
[1725155741244,4.54480034,2495.9,2495.7,0.4039]
[1725155741548,6.3278,2496.0,2495.8,0.4337]
[1725155741751,4.56132829,2495.9,2495.8,0.4337]
[1725155746252,4.96199829,2495.9,2495.8,0.4337]
[1725155746447,4.56132829,2495.9,2495.6,1.0477223]
[1725155746652,3.9518,2495.8,2495.6,1.0477223]
[1725155746847,3.2078,2495.7,2495.6,1.0477223]
[1725155747153,8.54795178,2495.7,2495.6,1.0477223]
[1725155747353,4.53745178,2495.7,2495.6,1.0477223]
[1725155747548,4.53745178,2495.7,2495.6,7.58582952]
[1725155747745,4.13956752,2495.9,2495.6,7.05890421]
[1725155747945,6.3278,2496.0,2495.7,1.88146871]
[1725155748145,6.7601,2496.0,2495.7,1.88146871]
[1725155748351,4.41294446,2495.9,2495.7,1.88146871]
[1725155749557,4.41294446,2495.9,2495.8,0.40069]
[1725155749747,4.41294446,2495.9,2495.8,3.97923246]
[1725155750749,3.41085214,2495.9,2495.8,3.97923246]
[1725155751246,3.41085214,2495.9,2495.8,7.98283137]
[1725155751451,1.3,2496.3,2496.1,0.40063]
[1725155751656,1.3,2496.3,2496.2,1.68852]
[1725155751848,5.62211125,2496.3,2496.2,1.2879]
[1725155752250,1.3,2496.3,2496.2,1.2879]
[1725155752459,5.62211125,2496.3,2496.2,2.33546248]
[1725155753957,5.62211125,2496.3,2496.2,6.74248248]
[1725155754160,5.62211125,2496.3,2496.2,8.34586089]
[1725155755154,5.62211125,2496.3,2496.2,8.34587974]
[1725155755759,5.62211125,2496.3,2496.2,4.33947974]
[1725155756055,5.62211125,2496.3,2496.2,1.47336248]
[1725155756256,6.47031125,2496.3,2496.2,1.47336248]
[1725155757054,6.87092125,2496.3,2496.2,1.04756248]
[1725155757255,0.40062,2496.2,2496.1,1.04756248]
[1725155757458,3.60842,2496.2,2496.1,1.04756248]
[1725155757655,11.84126908,2496.2,2495.9,1.04756248]
[1725155757855,0.40066,2496.0,2495.9,1.04756248]
[1725155758159,5.02772908,2496.0,2495.9,1.04756248]
[1725155758360,8.57322908,2496.0,2495.9,1.04756248]
[1725155759461,0.40067,2495.9,2495.8,1.04756248]
[1725155759757,5.54876945,2495.9,2495.8,1.04756248]
[1725155759961,9.55516945,2495.9,2495.8,1.04756248]
[1725155761462,9.55516945,2495.9,2495.8,3.05197058]
[1725155762464,9.55516945,2495.9,2495.8,3.0519794]
[1725155763259,9.15449945,2495.9,2495.8,3.0519794]
[1725155763467,5.14809945,2495.9,2495.8,2.00441692]
[1725155764061,5.14809945,2495.9,2495.8,3.57576065]
[1725155765766,5.14809945,2495.9,2495.8,2.00441692]
[1725155766071,4.29899945,2495.9,2495.8,2.00441692]
[1725155767365,4.29899945,2495.9,2495.8,4.10391149]
[1725155767563,4.69966945,2495.9,2495.8,4.10381315]
[1725155767769,4.69966945,2495.9,2495.8,3.57831731]
[1725155767770,4.29899945,2495.9,2495.8,3.57831731]
[1725155767966,4.29899945,2495.9,2495.8,4.10381315]
[1725155769965,4.29899945,2495.9,2495.8,8.11242966]
[1725155770266,4.29899945,2495.9,2495.8,18.51944558]
[1725155770464,1.20663775,2496.8,2495.8,18.51944558]
[1725155770465,1.248,2496.5,2496.1,0.40063]
[1725155770661,3.2814034,2496.4,2496.3,1.57395036]
[1725155770863,7.44858018,2496.4,2496.3,3.57826894]
[1725155771058,7.44858018,2496.4,2496.3,2.00431858]
[1725155771267,7.28717678,2496.4,2496.3,3.05353861]
[1725155771462,7.44858178,2496.4,2496.3,3.05351353]
[1725155771670,7.28717678,2496.4,2496.3,3.57826894]
[1725155772374,7.28717678,2496.4,2496.3,7.98447894]
[1725155772573,7.28717678,2496.4,2496.3,6.00949935]
[1725155774070,7.28717678,2496.4,2496.3,7.58264808]
[1725155774271,7.28717678,2496.4,2496.3,6.00949935]
[1725155775067,7.28717678,2496.4,2496.3,7.58255472]
[1725155775266,7.28717678,2496.4,2496.3,7.58266889]
[1725155775770,7.68776678,2496.4,2496.3,3.57706889]
[1725155776470,7.28717678,2496.4,2496.3,3.57706889]
[1725155776664,7.28717678,2496.4,2496.3,4.43116889]
[1725155777474,7.28717678,2496.4,2496.3,4.43124685]
[1725155779370,7.28717678,2496.4,2496.3,4.01694685]
[1725155780072,7.28717678,2496.4,2496.3,4.01687463]
[1725155780276,5.46717678,2496.4,2496.3,2.01296954]
[1725155780573,5.46717678,2496.4,2496.3,4.01687166]
[1725155780872,5.46717678,2496.4,2496.3,2.44370212]
[1725155781073,5.46717678,2496.4,2496.3,4.01668168]
[1725155782370,5.46717678,2496.4,2496.3,3.57688168]
[1725155782575,5.46717678,2496.4,2496.3,3.05264405]
[1725155782769,5.86776678,2496.4,2496.3,3.05264405]
[1725155783070,5.46717678,2496.4,2496.3,3.57688168]
[1725155787566,5.86776678,2496.4,2496.3,2.00390212]
[1725155787767,5.86776678,2496.4,2496.3,1.04904066]
[1725155787970,5.86776678,2496.4,2496.2,1.04904066]
[1725155787971,0.40061,2496.3,2496.2,1.04904066]
[1725155788164,0.40062,2496.2,2496.1,1.04904066]
[1725155788474,0.40064,2496.1,2496.0,1.04904066]
[1725155788675,0.85904,2496.1,2496.0,1.04904066]
[1725155788873,9.30660264,2496.1,2496.0,3.05343073]
[1725155789072,0.40066,2496.0,2495.9,1.04904066]
[1725155789273,1.70066,2496.0,2495.9,3.05347701]
[1725155789577,6.14182264,2496.0,2495.9,1.04904066]
[1725155792078,6.14182264,2496.0,2495.9,3.57734297]
[1725155792469,5.74116264,2496.0,2495.9,3.57734297]
[1725155792974,5.74116264,2496.0,2495.9,3.57729901]
[1725155793169,5.74116264,2496.0,2495.9,2.00431945]
[1725155793369,5.74116264,2496.0,2495.9,3.57729901]
[1725155794475,6.14182264,2496.0,2495.9,3.57729901]
[1725155794975,6.30335271,2496.0,2495.9,1.04945348]
[1725155795176,6.30335916,2496.0,2495.9,1.04945348]
[1725155795374,6.14182264,2496.0,2495.9,1.04945348]
[1725155795680,9.34962264,2496.0,2495.9,1.04945348]
[1725155795976,9.34962264,2496.0,2495.9,3.05389036]
[1725155796178,9.34962264,2496.0,2495.9,1.04945348]
[1725155796677,1.00169,2495.9,2495.7,1.04950003]
[1725155796884,1.00169,2495.9,2495.6,1.04950003]
[1725155796885,0.4007,2495.7,2495.6,1.04950003]
[1725155797184,7.97138173,2495.7,2495.6,1.04950003]
[1725155797366,12.41848581,2495.7,2495.6,1.04950003]
[1725155797774,12.25694602,2495.7,2495.6,1.04950003]
[1725155797982,0.40072,2495.6,2495.5,1.04950003]
[1725155798181,1.70072,2495.6,2495.5,1.04950003]
[1725155798382,6.14886191,2495.6,2495.5,1.04950003]
[1725155798983,9.35666191,2495.6,2495.5,1.04950003]
[1725155799166,13.36386191,2495.6,2495.5,1.04950003]
[1725155799372,0.40074,2495.5,2495.4,0.00600336]
[1725155799676,5.1704985,2495.5,2495.4,0.00600336]
[1725155799876,5.36915169,2495.5,2495.4,0.00600336]
[1725155800679,9.37635169,2495.5,2495.4,0.00600336]
[1725155801177,5.78925169,2495.5,2495.4,0.00600336]
[1725155801369,9.79645169,2495.5,2495.4,0.00600336]
[1725155801569,13.00425169,2495.5,2495.4,0.00600336]
[1725155802178,8.99705169,2495.5,2495.4,0.00600336]
[1725155805287,5.78925169,2495.5,2495.4,0.00600336]
[1725155805488,8.14695169,2495.5,2495.4,0.00600336]
[1725155811096,4.93915169,2495.5,2495.4,0.00600336]
[1725155811284,8.14695169,2495.5,2495.4,0.00600336]
[1725155819492,5.83841169,2495.5,2495.4,0.00600336]
[1725155821805,5.23700314,2495.5,2495.4,4.01320336]
[1725155822198,5.03834995,2495.5,2495.4,4.01320336]
[1725155825903,5.64125595,2495.5,2495.4,0.00600336]
[1725155826101,6.07145595,2495.5,2495.4,0.00600336]
[1725155831009,6.43869201,2495.5,2495.4,0.00600336]
[1725155831407,6.07145595,2495.5,2495.4,0.00600336]
[1725155833306,10.07865595,2495.5,2495.4,2.01083971]
[1725155833496,15.83938143,2495.5,2495.2,1.57297956]
[1725155833700,4.90857,2495.3,2495.2,1.57297956]
[1725155833902,0.40078,2495.2,2495.1,1.99707029]
[1725155834107,0.40078,2495.2,2495.1,2.42755812]
[1725155834409,4.59953894,2495.2,2495.1,2.42755812]
[1725155835203,4.19875894,2495.2,2495.1,2.42755812]
[1725155835408,5.89953894,2495.2,2495.1,2.42755812]
[1725155835811,5.49875894,2495.2,2495.1,4.5261586]
[1725155836105,5.89953894,2495.2,2495.1,4.5261586]
[1725155836616,5.89953894,2495.2,2495.1,3.5802004]
[1725155837609,5.89953894,2495.2,2495.1,2.00505812]
[1725155838202,5.89953894,2495.2,2495.1,4.1036586]
[1725155839222,5.49875894,2495.2,2495.1,8.11366571]
[1725155839510,5.49875894,2495.2,2495.1,10.02306523]
[1725155840105,5.49875894,2495.2,2495.1,12.64631583]
[1725155840414,5.49875894,2495.2,2495.1,10.02306523]
[1725155840615,5.49875894,2495.2,2495.1,10.02271648]
[1725155841219,5.49875894,2495.2,2495.1,12.64596708]
[1725155842201,5.49875894,2495.2,2495.1,10.02271648]
[1725155843613,5.49875894,2495.2,2495.1,6.01471648]
[1725155846012,5.66007409,2495.2,2495.1,6.01471648]
[1725155846420,5.66007409,2495.2,2495.1,8.64328633]
[1725155850017,6.06085409,2495.2,2495.1,8.64328633]
[1725155850517,6.06085409,2495.2,2495.1,6.01481143]
[1725155852222,6.06085409,2495.2,2495.1,8.11741499]
[1725155852424,6.51395409,2495.2,2495.1,8.11741499]
[1725155852925,10.52195409,2495.2,2495.1,8.11741499]
[1725155853221,10.52195409,2495.2,2495.1,8.11769691]
[1725155854125,10.52195409,2495.2,2495.1,4.1075407]
[1725155854514,10.86460783,2495.2,2495.1,4.1075407]
[1725155855326,4.36007409,2495.2,2495.1,4.1075407]
[1725155855512,5.66007409,2495.2,2495.1,6.01493921]
[1725155855717,5.66007409,2495.2,2495.1,8.1170146]
[1725155856426,6.06085409,2495.2,2495.1,8.117072]
[1725155858530,5.66007409,2495.2,2495.1,8.117072]
[1725155858827,5.49875894,2495.2,2495.1,12.65147151]
[1725155860326,5.49875894,2495.2,2495.1,8.11681187]
[1725155861229,5.49875894,2495.2,2495.1,12.12481187]
[1725155861431,5.49875894,2495.2,2495.1,12.65129979]
[1725155862334,5.89953894,2495.2,2495.1,12.65129979]
[1725155862531,4.19875894,2495.2,2495.1,12.65129979]
[1725155862838,0.00600336,2495.4,2495.2,0.40078]
[1725155863027,0.00600336,2495.4,2495.3,6.86652489]
[1725155863226,0.40675336,2495.4,2495.3,7.31902489]
[1725155863422,4.63138983,2495.4,2495.3,7.31902489]
[1725155863623,4.63138983,2495.4,2495.3,9.09422228]
[1725155864334,4.99259885,2495.4,2495.3,8.56892639]
[1725155864533,4.99259885,2495.4,2495.3,6.46732489]
[1725155864831,4.99259885,2495.4,2495.3,6.01482489]
[1725155865135,4.99259885,2495.4,2495.3,6.46732489]
[1725155865931,4.59184885,2495.4,2495.3,6.46732489]
[1725155866340,4.59184885,2495.4,2495.3,6.46692472]
[1725155866735,4.99259885,2495.4,2495.3,6.46692472]
[1725155867234,4.99259885,2495.4,2495.3,6.46696451]
[1725155867939,4.59184885,2495.4,2495.3,6.46696451]
[1725155868131,5.89184885,2495.4,2495.3,10.47416451]
[1725155868332,5.73049146,2495.4,2495.3,13.1010619]
[1725155869838,6.13124146,2495.4,2495.3,10.47416451]
[1725155870041,7.15112879,2495.4,2495.3,10.47416451]
[1725155870541,6.7503771,2495.4,2495.3,10.47416451]
[1725155871249,6.7503771,2495.4,2495.3,13.10102632]
[1725155871438,5.8918771,2495.4,2495.3,13.10102632]
[1725155871643,5.73049146,2495.4,2495.3,13.10102632]
[1725155872139,5.73049146,2495.4,2495.3,9.09382632]
[1725155873445,5.53063983,2495.4,2495.3,13.10102632]
[1725155874551,4.23063983,2495.4,2495.3,13.50179632]
[1725155874752,5.53063983,2495.4,2495.3,13.50179632]
[1725155875758,5.53063983,2495.4,2495.3,9.49459632]
[1725155875958,5.53063983,2495.4,2495.3,13.50179632]
[1725155876356,5.53063983,2495.4,2495.3,13.50126999]
[1725155877658,5.53063983,2495.4,2495.3,13.10049999]
[1725155878052,5.53063983,2495.4,2495.3,13.50126999]
[1725155878250,5.53063983,2495.4,2495.3,10.8743726]
[1725155880858,1.3,2495.6,2495.3,25.60669047]
[1725155881058,1.3,2495.6,2495.4,17.29993137]
[1725155881259,0.40071,2495.7,2495.5,6.01382356]
[1725155881456,0.40071,2495.7,2495.6,8.64033976]
[1725155881758,5.04698119,2495.7,2495.6,8.64033976]
[1725155881959,6.01157119,2495.8,2495.6,8.64033976]
[1725155882160,6.17795476,2495.7,2495.6,2.10079217]
[1725155882359,6.17795476,2495.7,2495.6,8.11448573]
[1725155884063,5.77725476,2495.7,2495.6,8.11448573]
[1725155885461,5.77725476,2495.7,2495.6,4.10535669]
[1725155886571,5.77725476,2495.7,2495.6,8.11435398]
[1725155887066,5.77725476,2495.7,2495.6,8.55735398]
[1725155889160,6.17795476,2495.7,2495.6,8.55735398]
[1725155889460,6.17795476,2495.7,2495.6,4.54835669]
[1725155889854,6.17795476,2495.7,2495.6,4.10530694]
[1725155890264,5.77725476,2495.7,2495.6,4.10530694]
[1725155890464,6.17795476,2495.7,2495.6,4.10530694]
[1725155890765,10.34657677,2495.7,2495.6,2.00451477]
[1725155890970,0.40072,2495.6,2495.5,1.57444726]
[1725155891162,0.40072,2495.6,2495.5,3.57919575]
[1725155891356,4.88365448,2495.6,2495.5,3.57919575]
[1725155891955,5.04505847,2495.6,2495.5,3.57919575]
[1725155892157,5.04505847,2495.6,2495.5,2.00474849]
[1725155893267,4.88365448,2495.6,2495.5,2.00474849]
[1725155893466,5.04504595,2495.6,2495.5,2.00474849]
[1725155894870,5.04504595,2495.6,2495.5,2.00478417]
[1725155895473,5.04504595,2495.6,2495.4,1.57444726]
[1725155895474,0.40074,2495.5,2495.4,1.57444726]
[1725155895769,9.83001454,2495.5,2495.4,3.57927743]
[1725155898368,8.12927454,2495.5,2495.4,2.00483017]
[1725155898569,8.99827454,2495.5,2495.4,4.57102234]
[1725155899074,5.79047454,2495.5,2495.4,8.58037872]
[1725155899568,5.79047454,2495.5,2495.4,6.47958655]
[1725155899767,5.79047454,2495.5,2495.4,8.57959031]
[1725155899973,5.79047454,2495.5,2495.4,8.57934291]
[1725155900476,5.79047454,2495.5,2495.4,6.47933915]
[1725155900773,5.79047454,2495.5,2495.4,6.47924045]
[1725155902577,5.79047454,2495.5,2495.4,9.10575665]
[1725155902968,5.79047454,2495.5,2495.4,6.47924045]
[1725155903872,5.79047454,2495.5,2495.4,8.11469474]
[1725155904071,5.79047454,2495.5,2495.4,6.01384045]
[1725155905476,5.58809822,2495.5,2495.4,6.01384045]
[1725155906275,6.18910601,2495.5,2495.4,8.64035665]
[1725155906476,6.18910601,2495.5,2495.4,8.11541583]
[1725155906477,6.35045979,2495.5,2495.4,8.11541583]
[1725155906981,5.94971979,2495.5,2495.4,6.01384045]
[1725155909480,5.94971979,2495.5,2495.4,8.11578443]
[1725155909682,5.94971979,2495.5,2495.4,6.01384045]
[1725155909877,5.94972256,2495.5,2495.4,6.01384045]
[1725155910078,5.94972256,2495.5,2495.4,8.11604543]
[1725155910279,5.94972256,2495.5,2495.4,6.01412722]
[1725155910280,5.78836601,2495.5,2495.4,6.01412722]
[1725155910580,5.94972811,2495.5,2495.4,8.11612783]